{"text_format":"3","workbook":"xlsx","n_sheets":2,"sheets":["Karta zgłoszenia ucznia","Dane"],"not_rendered":{"images":1,"macros":1},"read":"whole","date_system":"1900"}

{"sheet":"Karta zgłoszenia ucznia","index":0,"n_rows":41,"n_cols":10,"rows_kept":41,"merged":[[1,2,1,13],[2,2,2,13],[4,0,4,13],[6,0,6,5],[6,6,6,14],[8,0,8,5],[8,6,8,14],[10,0,10,7],[10,8,10,14],[12,0,12,1],[12,6,12,9],[12,10,12,13],[15,0,15,1],[15,2,15,5],[15,7,15,8],[15,9,15,12],[17,0,17,1],[17,2,17,3],[17,4,17,5],[17,6,17,8],[17,9,17,10],[17,11,17,13],[19,0,19,1],[19,2,19,3],[19,4,19,5],[19,6,19,7],[19,8,19,9],[19,10,19,13],[21,0,21,1],[21,2,21,6],[21,7,21,8],[21,9,21,13],[23,0,23,3],[23,4,23,13],[25,0,25,9],[27,0,27,1],[27,7,27,8],[29,0,29,1],[29,2,29,5],[29,7,29,8],[29,9,29,12],[31,0,31,1],[31,2,31,5],[31,7,31,8],[31,9,31,12],[33,0,33,1],[33,2,33,5],[33,7,33,8],[33,9,33,12],[35,0,35,1],[35,2,35,5],[35,7,35,8],[35,9,35,12],[37,0,37,13],[38,0,38,13],[39,1,39,13],[40,0,41,13]]}
[]
[null,null,"Karta zgłoszenia ucznia do Polskiej Szkoły Sobotniej im. Bł. Franciszki Siedliskiej w Northampton "]
[null,null,"w roku szkolnym 2021/2022"]
[]
["Wysyłając kartę zgłoszeniową oświadczam, że zapoznałam/łem się z regulaminem PSS oraz regulaminem płatności (linki poniżej), przyjmuję je do wiadomości i będę je przestrzegać. \nBy sending the application form, I declare that I have read the PSS regulations and the payment regulations (links below), I accept them and I will comply with them."]
[]
["Regulamin Polskiej Szkoły Sobotniej można pobrać tutaj:\nThe regulations of the Polish Saturday School can be downloaded here:",{"$nulls":5},"http://www.pss.nets.pl/pss_northampton/wp-content/uploads/2021/06/Regulamin-Szkoly-2021-2022.pdf"]
[]
["Regulamin opłat za szkołe na rok 2021 - 2022 mozna pobrać tutaj:\nThe school fees regulations for 2021-2022 can be downloaded here:",{"$nulls":5},"http://www.pss.nets.pl/pss_northampton/wp-content/uploads/2021/05/Regulanim-opłat-za-szkołę-2021-2022.pdf"]
[]
["Instrukcję jak poprawnie wypełnić i wysłać kartę zgłoszenia ucznia można pobrać tutaj:\nInstructions on how to correctly fill and send a student application card can be downloaded here:",{"$nulls":7},"http://www.pss.nets.pl/pss_northampton/wp-content/uploads/2021/05/Instrukcja.docx"]
[]
["Dane Ucznia:\nstudent data",{"$nulls":5},"*Obecnie w PSS w klasie (wybierz z listy):\nCurrently in PSS in the group (choose from the list)"]
[]
[]
["*Nazwisko\nSurname",{"$nulls":6},"*Imię/Imiona\nFirst Name/Names"]
[]
["*Data Urodzenia\nDate Of Bird",{"$nulls":3},"*Miejsce Urodzenia\nPlace Of Bird",{"$nulls":4},"*Kraj Urodzenia\nCountry Of Bird"]
[]
["*Kod pocztowy\nPostcode",{"$nulls":3},"*Miejscowość\nCity",{"$nulls":3},"*Adres\nAddress"]
[]
["*Uczulenia\nAllergies",{"$nulls":6},"*Choroby Przewlekłe\nChronic Diseases"]
[]
["*Nazwa i adres szkoły angielskiej\nName and Address of English School"]
[]
["Dane rodziców/opiekunów prawnych (wpisać tylko osoby, które mają prawa rodzicielskie do dziecka):\nData of parents / legal guardians (enter only persons who have parental rights to the child)"]
[]
["Rodzic/opiekun 1\nParent / Guardian 1",{"$nulls":6},"Rodzic/opiekun 2\nParent / Guardian 2"]
[]
["*Imię i Nazwisko\nName and Surname",{"$nulls":6},"*Imię i Nazwisko\nName and Surname"]
[]
["Telefon domowy\nHome Phone Number",{"$nulls":6},"Telefon domowy\nHome Phone Number"]
[]
["*Telefon komórkowy\nMobile Number",{"$nulls":6},"*Telefon komórkowy\nMobile Number"]
[]
["*E-mail",{"$nulls":6},"*E-mail"]
[]
["Warunkiem przyjęcia karty zgłoszeniowej jest wpłacenie bezzwrotnej zaliczki w wysokości £40 na poczet opłaty za nowy rok szkolny 2021/2022 do dnia 24.07.2021.\nThe condition to accept the application form is to pay a non-returnable advance of £40 towards the fee for the new school year 2021/2022 until 24.07.2021.\n\nKonto bankowe PSS: Lloyds TSB Sort code: 30-96-09 Account no: 36674760 z tytułem przelewu: imię i nazwisko dziecka.\nPSS Bank account: Lloyds TSB Sort code: 30-96-09 Account no: 36674760 with the title of transfer: name and surname of the child."]
["Wysyłając kartę zgłoszeniową oświadczam, że zapoznałam/łem się z regulaminem PSS oraz regulaminem płatności (do pobrania na www.pss.nets.pl), przyjmuję go do wiadomości i będę go przestrzegać jak również wyrażam zgodę na przetwarzanie moich danych osobowych w celach rekrutacji.\nSending a registration card I declare that I have read the regulations of PSS and payment regulations (to download at www.pss.nets.pl), I acknowledge it and I will follow it as well as I agree to the processing of my data for recruitment purposes."]
["TAK/YES","Zezwalam na fotografowanie w trakcie zajęć lekcyjnych, imprez i uroczystości oraz na umieszczanie tych zdjęć na stronie internetowej oraz Facebook’u  Polskiej Szkoły Sobotniej w Northampton.\nI allow taking photos during classes, parties and celebrations, as well as posting them on the website and Facebook of the Polish Saturday School in Northampton."]
["* - pola obowiązkowe (Required fields)"]

{"sheet":"Dane","index":1,"n_rows":25,"n_cols":24,"rows_kept":25,"hidden":true,"merged":[[0,1,0,12],[0,13,0,16],[0,17,0,20],[0,21,0,23]]}
[null,"DANE UCZNIA",{"$nulls":11},"RODZIC 1",{"$nulls":3},"RODZIC 2",{"$nulls":3},"YES/NO"]
[null,"Imię/Imiona\nFirst Name/Names","Nazwisko\nSurname","Obecnie w klasie\nCurently in Class","Data Urodzenia\nDate Of Bird","Miejsce Urodzenia\nPlace Of Bird","Kraj Urodzenia\nCountry Of Bird","Kod pocztowy\nPostcode","Miejscowość\nCity","Adres\nAddress","Uczulenia\nAllergies","Choroby Przewlekłe\nChronic Diseases","Nazwa i adres szkoły angielskiej\nName and Address of English School","Imię i Nazwisko\nName and Surname","Telefon domowy\nHome Phone Number","Telefon komórkowy\nMobile Number","E-mail","Imię i Nazwisko\nName and Surname","Telefon domowy\nHome Phone Number","Telefon komórkowy\nMobile Number","E-mail","Potwierdzenie Regulaminu PSS","Zgoda na fotografowanie","Zgoda na przetwarzanie danych w celu rekrutacji"]
[null,{"$f":"'Karta zgłoszenia ucznia'!J16","v":0},{"$f":"'Karta zgłoszenia ucznia'!C16:F16","v":0},{"$f":"'Karta zgłoszenia ucznia'!K13","v":0},{"$f":"'Karta zgłoszenia ucznia'!C18","v":"00:00:00"},{"$f":"'Karta zgłoszenia ucznia'!G18","v":0},{"$f":"'Karta zgłoszenia ucznia'!L18","v":0},{"$f":"'Karta zgłoszenia ucznia'!C20","v":0},{"$f":"'Karta zgłoszenia ucznia'!G20","v":0},{"$f":"'Karta zgłoszenia ucznia'!K20","v":0},{"$f":"'Karta zgłoszenia ucznia'!C22","v":0},{"$f":"'Karta zgłoszenia ucznia'!J22","v":0},{"$f":"'Karta zgłoszenia ucznia'!E24","v":0},{"$f":"'Karta zgłoszenia ucznia'!C30","v":0},{"$f":"'Karta zgłoszenia ucznia'!C32","v":0},{"$f":"'Karta zgłoszenia ucznia'!C34","v":0},{"$f":"'Karta zgłoszenia ucznia'!C36","v":0},{"$f":"'Karta zgłoszenia ucznia'!J30","v":0},{"$f":"'Karta zgłoszenia ucznia'!J32","v":0},{"$f":"'Karta zgłoszenia ucznia'!J34","v":0},{"$f":"'Karta zgłoszenia ucznia'!J36","v":0},"YES",{"$f":"'Karta zgłoszenia ucznia'!A40","v":"TAK/YES"},"YES"]
[]
[1,"Klasy"]
[]
[1,"Nowy Uczeń \n(New Student)"]
[2,"Przedszkole 3-latki \n(Childrens 3 years old)"]
[3,"Przedszkole 4-latki \n(Childrens 4 years old)"]
[4,"Klasa 0a \n(Class 0a)"]
[null,"Klasa 0b \n(Class 0b)"]
[5,"Klasa 1a \n(Class 1a)"]
[6,"Klasa 1b \n(Class 1b)"]
[7,"Klasa 2a \n(Class 2a)"]
[8,"Klasa 2b \n(Class 2b)"]
[9,"Klasa 3a \n(Class 3a)"]
[10,"Klasa 3b \n(Class 3b)"]
[12,"Klasa 4\n(Class 4)"]
[13,"Klasa 5 \n(Class 5)"]
[14,"Klasa 6 \n(Class 6)"]
[15,"Klasa 7 (GCSE) \n(Class 7 (GCSE))"]
[16,"Klasa 8 (AS/A2 Level) \n(Class 8 (AS/A2 Level))"]
[]
["TAK/YES"]
["NIE/NO"]